[Event "Titled Tuesday Blitz January 03 Late 2023"]
[White "Vega Gutierrez, Sabrina"]
[Black "Zampronha, Wladimir Camilo"]
[WhiteFideId "2219026"]
[BlackFideId "2103087"]
[WhiteElo "2377"]
[BlackElo "2176"]
[Result "0-1"]
[Round "09"]
[TimeControl "180+2"]
[Date "2023.01.03"]
[WhiteClock "0:00:02"]
[BlackClock "0:00:20"]

1. e4 {[%clk 0:03:00]}  c5 {[%clk 0:03:00]} 2. Nf3 {[%clk 0:03:01]}  e6 {[%clk 0:03:01]} 3. d4 {[%clk 0:03:01]}  cxd4 {[%clk 0:03:02]} 4. Nxd4 {[%clk 0:03:02]}  Nc6 {[%clk 0:03:02]} 5. Nc3 {[%clk 0:03:02]}  Qc7 {[%clk 0:03:03]} 6. f4 {[%clk 0:03:01]}  a6 {[%clk 0:02:44]} 7. Be3 {[%clk 0:03:01]}  b5 {[%clk 0:02:43]} 8. Bd3 {[%clk 0:03:00]}  Bb7 {[%clk 0:02:42]} 9. Qf3 {[%clk 0:02:57]}  Nxd4 {[%clk 0:02:21]} 10. Bxd4 {[%clk 0:02:57]}  Nf6 {[%clk 0:02:21]} 11. g4 {[%clk 0:02:53]}  Bc5 {[%clk 0:02:18]} 12. Bxc5 {[%clk 0:02:49]}  Qxc5 {[%clk 0:02:18]} 13. g5 {[%clk 0:02:49]}  Ng8 {[%clk 0:02:09]} 14. O-O-O {[%clk 0:02:49]}  Ne7 {[%clk 0:02:01]} 15. Kb1 {[%clk 0:02:39]}  Rc8 {[%clk 0:01:59]} 16. h4 {[%clk 0:02:33]}  b4 {[%clk 0:01:51]} 17. Na4 {[%clk 0:02:24]}  Qc6 {[%clk 0:01:50]} 18. b3 {[%clk 0:02:23]}  d5 {[%clk 0:01:50]} 19. Rhe1 {[%clk 0:02:18]}  Qc7 {[%clk 0:01:35]} 20. Qf2 {[%clk 0:02:03]}  dxe4 {[%clk 0:01:31]} 21. Bxe4 {[%clk 0:02:00]}  Bxe4 {[%clk 0:01:31]} 22. Rxe4 {[%clk 0:02:01]}  O-O {[%clk 0:01:27]} 23. Rc4 {[%clk 0:01:31]}  Qb8 {[%clk 0:01:26]} 24. Rxc8 {[%clk 0:01:21]}  Qxc8 {[%clk 0:01:26]} 25. Nb6 {[%clk 0:01:20]}  Qc3 {[%clk 0:01:22]} 26. Rd3 {[%clk 0:01:18]}  Qc6 {[%clk 0:01:20]} 27. Nd7 {[%clk 0:01:12]}  Rc8 {[%clk 0:01:16]} 28. Ne5 {[%clk 0:01:11]}  Qh1+ {[%clk 0:01:14]} 29. Kb2 {[%clk 0:01:10]}  Nd5 {[%clk 0:01:12]} 30. Qa7 {[%clk 0:01:02]}  Nc3 {[%clk 0:01:02]} 31. Qxf7+ {[%clk 0:00:55]}  Kh8 {[%clk 0:01:02]} 32. Rxc3 {[%clk 0:00:46]}  bxc3+ {[%clk 0:01:03]} 33. Ka3 {[%clk 0:00:46]}  Qd5 {[%clk 0:00:33]} 34. b4 {[%clk 0:00:12]}  a5 {[%clk 0:00:33]} 35. Qe7 {[%clk 0:00:05]}  axb4+ {[%clk 0:00:30]} 36. Kxb4 {[%clk 0:00:06]}  Rb8+ {[%clk 0:00:29]} 37. Kxc3 {[%clk 0:00:06]}  Rc8+ {[%clk 0:00:26]} 38. Kb4 {[%clk 0:00:06]}  Qd4+ {[%clk 0:00:22]} 39. Kb5 {[%clk 0:00:03]}  Qb2+ {[%clk 0:00:20]} 40. Ka4 {[%clk 0:00:02]}  Ra8+ {[%clk 0:00:20]} 0-1


[Site "https://www.chess.com"]

[Event "Titled Tuesday Blitz January 03 Late 2023"]
[White "Estrada Nieto, Julian"]
[Black "Weetik, Vjacheslav"]
[WhiteFideId "5101018"]
[BlackFideId "4153472"]
[WhiteElo "2215"]
[BlackElo "2423"]
[Result "1-0"]
[Round "09"]
[TimeControl "180+2"]
[Date "2023.01.03"]
[WhiteClock "0:00:08"]
[BlackClock "0:00:18"]

1. e4 {[%clk 0:03:00]}  c6 {[%clk 0:03:00]} 2. d4 {[%clk 0:03:00]}  d5 {[%clk 0:03:00]} 3. exd5 {[%clk 0:02:59]}  cxd5 {[%clk 0:03:00]} 4. Bd3 {[%clk 0:03:00]}  Nc6 {[%clk 0:03:01]} 5. c3 {[%clk 0:03:00]}  Qc7 {[%clk 0:03:01]} 6. Ne2 {[%clk 0:02:58]}  Bg4 {[%clk 0:03:00]} 7. O-O {[%clk 0:02:58]}  e6 {[%clk 0:03:00]} 8. Qe1 {[%clk 0:02:57]}  Nf6 {[%clk 0:02:50]} 9. f3 {[%clk 0:02:53]}  Bh5 {[%clk 0:02:49]} 10. Qh4 {[%clk 0:02:36]}  h6 {[%clk 0:02:23]} 11. g4 {[%clk 0:02:25]}  g5 {[%clk 0:02:22]} 12. Qh3 {[%clk 0:02:17]}  Bg6 {[%clk 0:02:21]} 13. Bxg6 {[%clk 0:02:17]}  fxg6 {[%clk 0:02:22]} 14. Bxg5 {[%clk 0:02:15]}  Nd7 {[%clk 0:01:51]} 15. Nf4 {[%clk 0:01:53]}  hxg5 {[%clk 0:01:47]} 16. Nxe6 {[%clk 0:01:40]}  Rxh3 {[%clk 0:00:31]} 17. Nxc7+ {[%clk 0:01:39]}  Kf7 {[%clk 0:00:31]} 18. Nxa8 {[%clk 0:01:40]}  Bd6 {[%clk 0:00:32]} 19. Rf2 {[%clk 0:01:35]}  Rh8 {[%clk 0:00:31]} 20. Na3 {[%clk 0:01:18]}  Rxa8 {[%clk 0:00:24]} 21. Nc2 {[%clk 0:01:17]}  Nf8 {[%clk 0:00:17]} 22. Ne3 {[%clk 0:01:10]}  Ne7 {[%clk 0:00:17]} 23. Re1 {[%clk 0:01:05]}  Ne6 {[%clk 0:00:17]} 24. Ng2 {[%clk 0:01:00]}  Rh8 {[%clk 0:00:13]} 25. Rfe2 {[%clk 0:00:50]}  Nd8 {[%clk 0:00:10]} 26. Ne3 {[%clk 0:00:47]}  Ndc6 {[%clk 0:00:10]} 27. Nf1 {[%clk 0:00:46]}  Bf4 {[%clk 0:00:08]} 28. Ng3 {[%clk 0:00:45]}  Ng8 {[%clk 0:00:08]} 29. Kg2 {[%clk 0:00:45]}  Nf6 {[%clk 0:00:09]} 30. Re6 {[%clk 0:00:41]}  Rc8 {[%clk 0:00:08]} 31. R6e2 {[%clk 0:00:37]}  b5 {[%clk 0:00:09]} 32. Ra1 {[%clk 0:00:36]}  a5 {[%clk 0:00:09]} 33. Rc2 {[%clk 0:00:26]}  Nxd4 {[%clk 0:00:08]} 34. Rf2 {[%clk 0:00:23]}  Ne6 {[%clk 0:00:07]} 35. Ne2 {[%clk 0:00:23]}  Bb8 {[%clk 0:00:07]} 36. Rd1 {[%clk 0:00:20]}  b4 {[%clk 0:00:06]} 37. Rd3 {[%clk 0:00:15]}  Nf4+ {[%clk 0:00:04]} 38. Nxf4 {[%clk 0:00:14]}  Bxf4 {[%clk 0:00:05]} 39. Rc2 {[%clk 0:00:12]}  Rc4 {[%clk 0:00:05]} 40. Rd4 {[%clk 0:00:11]}  Ke6 {[%clk 0:00:05]} 41. h3 {[%clk 0:00:09]}  Kd6 {[%clk 0:00:04]} 42. Rxc4 {[%clk 0:00:09]}  dxc4 {[%clk 0:00:05]} 43. Re2 {[%clk 0:00:09]}  Nd5 {[%clk 0:00:05]} 44. cxb4 {[%clk 0:00:06]}  axb4 {[%clk 0:00:05]} 45. Re8 {[%clk 0:00:06]}  c3 {[%clk 0:00:05]} 46. bxc3 {[%clk 0:00:05]}  bxc3 {[%clk 0:00:06]} 47. Rc8 {[%clk 0:00:05]}  Ke5 {[%clk 0:00:07]} 48. Kf2 {[%clk 0:00:05]}  Kd4 {[%clk 0:00:07]} 49. Ke2 {[%clk 0:00:05]}  Bd2 {[%clk 0:00:07]} 50. Rd8 {[%clk 0:00:05]}  Kc4 {[%clk 0:00:07]} 51. Rc8+ {[%clk 0:00:05]}  Kb5 {[%clk 0:00:08]} 52. Kd3 {[%clk 0:00:06]}  Nf4+ {[%clk 0:00:08]} 53. Kc2 {[%clk 0:00:06]}  Nxh3 {[%clk 0:00:08]} 54. Rg8 {[%clk 0:00:06]}  Nf4 {[%clk 0:00:08]} 55. Rb8+ {[%clk 0:00:07]}  Kc5 {[%clk 0:00:08]} 56. a4 {[%clk 0:00:07]}  Nd5 {[%clk 0:00:08]} 57. Kb3 {[%clk 0:00:06]}  Ne3 {[%clk 0:00:07]} 58. Rc8+ {[%clk 0:00:05]}  Kd4 {[%clk 0:00:07]} 59. a5 {[%clk 0:00:05]}  c2 {[%clk 0:00:08]} 60. a6 {[%clk 0:00:03]}  Nd5 {[%clk 0:00:05]} 61. Rxc2 {[%clk 0:00:02]}  Be3 {[%clk 0:00:05]} 62. a7 {[%clk 0:00:02]}  Nb6 {[%clk 0:00:06]} 63. Rc6 {[%clk 0:00:01]}  Kd3 {[%clk 0:00:06]} 64. Rxb6 {[%clk 0:00:01]}  Bxb6 {[%clk 0:00:07]} 65. a8=Q {[%clk 0:00:02]}  Ke2 {[%clk 0:00:07]} 66. Qe8+ {[%clk 0:00:02]}  Be3 {[%clk 0:00:08]} 67. Qxg6 {[%clk 0:00:03]}  Kxf3 {[%clk 0:00:09]} 68. Qf5+ {[%clk 0:00:03]}  Bf4 {[%clk 0:00:10]} 69. Kc4 {[%clk 0:00:03]}  Kg3 {[%clk 0:00:11]} 70. Kd5 {[%clk 0:00:04]}  Kf3 {[%clk 0:00:11]} 71. Ke6 {[%clk 0:00:05]}  Kg3 {[%clk 0:00:12]} 72. Kd5 {[%clk 0:00:05]}  Kf3 {[%clk 0:00:13]} 73. Ke6 {[%clk 0:00:06]}  Ke3 {[%clk 0:00:14]} 74. Kf7 {[%clk 0:00:07]}  Kf3 {[%clk 0:00:15]} 75. Kg6 {[%clk 0:00:07]}  Ke3 {[%clk 0:00:15]} 76. Kh5 {[%clk 0:00:08]}  Kf3 {[%clk 0:00:16]} 77. Qb5 {[%clk 0:00:08]}  Ke3 {[%clk 0:00:17]} 78. Qf1 {[%clk 0:00:07]}  Ke4 {[%clk 0:00:17]} 79. Qg2+ {[%clk 0:00:07]}  Ke3 {[%clk 0:00:17]} 80. Kg6 {[%clk 0:00:08]}  Kd3 {[%clk 0:00:17]} 81. Kf5 {[%clk 0:00:08]}  Ke3 {[%clk 0:00:18]} 82. Qe4+ {[%clk 0:00:08]}  Kf2 {[%clk 0:00:18]} 83. Qxf4+ {[%clk 0:00:08]}  gxf4 {[%clk 0:00:18]} 84. Kxf4 {[%clk 0:00:08]} 1-0


[Site "https://www.chess.com"]

[Event "Titled Tuesday Blitz January 03 Late 2023"]
[White "Dinu, Dumitru-Daniel"]
[Black "Suvorov, Alexander"]
[WhiteFideId "1208403"]
[BlackFideId "12977063"]
[WhiteElo "2203"]
[BlackElo "2338"]
[Result "1/2-1/2"]
[Round "09"]
[TimeControl "180+2"]
[Date "2023.01.03"]
[WhiteClock "0:00:06"]
[BlackClock "0:00:06"]

1. e4 {[%clk 0:03:00]}  d6 {[%clk 0:02:58]} 2. d3 {[%clk 0:03:00]}  g6 {[%clk 0:02:57]} 3. Nc3 {[%clk 0:03:00]}  Bg7 {[%clk 0:02:58]} 4. Nge2 {[%clk 0:03:00]}  c5 {[%clk 0:02:47]} 5. g3 {[%clk 0:02:59]}  Nc6 {[%clk 0:02:48]} 6. Bg2 {[%clk 0:02:58]}  Rb8 {[%clk 0:02:48]} 7. a4 {[%clk 0:02:56]}  a6 {[%clk 0:02:48]} 8. Kf1 {[%clk 0:02:56]}  b5 {[%clk 0:02:47]} 9. axb5 {[%clk 0:02:55]}  axb5 {[%clk 0:02:48]} 10. Be3 {[%clk 0:02:53]}  b4 {[%clk 0:02:41]} 11. Na4 {[%clk 0:02:52]}  e5 {[%clk 0:02:39]} 12. h3 {[%clk 0:02:48]}  Nge7 {[%clk 0:02:37]} 13. Kg1 {[%clk 0:02:48]}  O-O {[%clk 0:02:30]} 14. Kh2 {[%clk 0:02:47]}  f5 {[%clk 0:02:29]} 15. exf5 {[%clk 0:02:35]}  gxf5 {[%clk 0:02:24]} 16. Bg5 {[%clk 0:02:34]}  h6 {[%clk 0:02:21]} 17. Bh4 {[%clk 0:02:22]}  Qe8 {[%clk 0:02:19]} 18. Bxe7 {[%clk 0:02:15]}  Nxe7 {[%clk 0:02:18]} 19. Re1 {[%clk 0:02:14]}  Bd7 {[%clk 0:02:13]} 20. b3 {[%clk 0:02:13]}  f4 {[%clk 0:02:03]} 21. Be4 {[%clk 0:02:02]}  Qh5 {[%clk 0:01:34]} 22. Ng1 {[%clk 0:01:59]}  fxg3+ {[%clk 0:01:32]} 23. fxg3 {[%clk 0:01:58]}  Rf2+ {[%clk 0:01:32]} 24. Kh1 {[%clk 0:01:57]}  Qxd1 {[%clk 0:01:28]} 25. Raxd1 {[%clk 0:01:53]}  Nf5 {[%clk 0:01:18]} 26. Bxf5 {[%clk 0:01:39]}  Rxf5 {[%clk 0:01:19]} 27. Nb2 {[%clk 0:01:29]}  Rf2 {[%clk 0:01:13]} 28. Rc1 {[%clk 0:01:15]}  Bc6+ {[%clk 0:01:13]} 29. Re4 {[%clk 0:01:12]}  d5 {[%clk 0:01:04]} 30. Re2 {[%clk 0:00:51]}  Rxe2 {[%clk 0:01:01]} 31. Nxe2 {[%clk 0:00:50]}  e4 {[%clk 0:01:01]} 32. Nd1 {[%clk 0:00:47]}  d4 {[%clk 0:00:57]} 33. dxe4 {[%clk 0:00:43]}  Bxe4+ {[%clk 0:00:57]} 34. Kg1 {[%clk 0:00:43]}  Re8 {[%clk 0:00:37]} 35. Nf2 {[%clk 0:00:33]}  Bc6 {[%clk 0:00:28]} 36. Nf4 {[%clk 0:00:32]}  Re3 {[%clk 0:00:28]} 37. Kh2 {[%clk 0:00:24]}  Be5 {[%clk 0:00:28]} 38. N2d3 {[%clk 0:00:19]}  Bd6 {[%clk 0:00:19]} 39. Re1 {[%clk 0:00:17]}  Bxf4 {[%clk 0:00:14]} 40. gxf4 {[%clk 0:00:17]}  Be4 {[%clk 0:00:07]} 41. Rxe3 {[%clk 0:00:15]}  dxe3 {[%clk 0:00:08]} 42. Kg3 {[%clk 0:00:08]}  Kg7 {[%clk 0:00:06]} 43. Nxc5 {[%clk 0:00:07]}  Bxc2 {[%clk 0:00:02]} 44. Kf3 {[%clk 0:00:08]}  Kf6 {[%clk 0:00:01]} 45. Kxe3 {[%clk 0:00:08]}  Bd1 {[%clk 0:00:02]} 46. Kd4 {[%clk 0:00:08]}  Kf5 {[%clk 0:00:01]} 47. Nd3 {[%clk 0:00:08]}  Bxb3 {[%clk 0:00:01]} 48. Nxb4 {[%clk 0:00:07]}  Kxf4 {[%clk 0:00:02]} 49. Nd3+ {[%clk 0:00:06]}  Kg3 {[%clk 0:00:03]} 50. Ke3 {[%clk 0:00:07]}  Kxh3 {[%clk 0:00:03]} 51. Kf2 {[%clk 0:00:07]}  Bg8 {[%clk 0:00:04]} 52. Nf4+ {[%clk 0:00:07]}  Kg4 {[%clk 0:00:05]} 53. Ng2 {[%clk 0:00:07]}  Bf7 {[%clk 0:00:05]} 54. Ne3+ {[%clk 0:00:07]}  Kh3 {[%clk 0:00:06]} 55. Nf5 {[%clk 0:00:06]}  Be6 {[%clk 0:00:06]} 56. Nxh6 {[%clk 0:00:06]} 1/2-1/2


[Site "https://www.chess.com"]

[Event "Titled Tuesday Blitz January 03 Late 2023"]
[White "Le Goff, Ronan"]
[Black "Weisz, Bryan"]
[WhiteFideId "612073"]
[BlackFideId "30934133"]
[WhiteElo "2320"]
[BlackElo "1973"]
[Result "0-1"]
[Round "09"]
[TimeControl "180+2"]
[Date "2023.01.03"]
[WhiteClock "0:01:25"]
[BlackClock "0:00:06"]

1. d4 {[%clk 0:02:58]}  Nf6 {[%clk 0:02:59]} 2. c4 {[%clk 0:02:53]}  d5 {[%clk 0:02:57]} 3. cxd5 {[%clk 0:02:53]}  Nxd5 {[%clk 0:02:58]} 4. Nf3 {[%clk 0:02:53]}  Bf5 {[%clk 0:02:54]} 5. Qb3 {[%clk 0:02:48]}  Nc6 {[%clk 0:02:51]} 6. a3 {[%clk 0:02:44]}  Nb6 {[%clk 0:02:28]} 7. e3 {[%clk 0:02:40]}  g6 {[%clk 0:02:17]} 8. Bb5 {[%clk 0:02:38]}  Qd6 {[%clk 0:02:14]} 9. Nc3 {[%clk 0:02:35]}  Bg7 {[%clk 0:02:09]} 10. a4 {[%clk 0:02:29]}  a6 {[%clk 0:01:43]} 11. Bxc6+ {[%clk 0:02:28]}  Qxc6 {[%clk 0:01:42]} 12. a5 {[%clk 0:02:24]}  Qc4 {[%clk 0:01:35]} 13. Qxc4 {[%clk 0:02:21]}  Nxc4 {[%clk 0:01:35]} 14. b3 {[%clk 0:02:20]}  Nd6 {[%clk 0:01:30]} 15. O-O {[%clk 0:02:19]}  Ne4 {[%clk 0:01:09]} 16. Na4 {[%clk 0:02:15]}  O-O-O {[%clk 0:01:06]} 17. Ba3 {[%clk 0:02:12]}  Rhe8 {[%clk 0:01:02]} 18. Rac1 {[%clk 0:02:08]}  e5 {[%clk 0:00:59]} 19. dxe5 {[%clk 0:02:07]}  Bxe5 {[%clk 0:01:00]} 20. Nxe5 {[%clk 0:02:07]}  Rxe5 {[%clk 0:01:00]} 21. Nb6+ {[%clk 0:02:04]}  Kb8 {[%clk 0:01:00]} 22. Nc4 {[%clk 0:02:05]}  Rb5 {[%clk 0:00:56]} 23. f3 {[%clk 0:02:02]}  Nc5 {[%clk 0:00:47]} 24. e4 {[%clk 0:02:00]}  Be6 {[%clk 0:00:43]} 25. Bxc5 {[%clk 0:01:57]}  Rxc5 {[%clk 0:00:42]} 26. Kf2 {[%clk 0:01:48]}  Bxc4 {[%clk 0:00:41]} 27. Rxc4 {[%clk 0:01:47]}  Rxc4 {[%clk 0:00:32]} 28. bxc4 {[%clk 0:01:48]}  Rd2+ {[%clk 0:00:32]} 29. Kg3 {[%clk 0:01:46]}  Rc2 {[%clk 0:00:31]} 30. h4 {[%clk 0:01:35]}  Rxc4 {[%clk 0:00:29]} 31. h5 {[%clk 0:01:35]}  Rc5 {[%clk 0:00:23]} 32. hxg6 {[%clk 0:01:35]}  hxg6 {[%clk 0:00:22]} 33. Rd1 {[%clk 0:01:34]}  Kc8 {[%clk 0:00:19]} 34. Kf4 {[%clk 0:01:34]}  Rxa5 {[%clk 0:00:20]} 35. g4 {[%clk 0:01:34]}  b5 {[%clk 0:00:19]} 36. Ke5 {[%clk 0:01:34]}  b4+ {[%clk 0:00:19]} 37. Kf6 {[%clk 0:01:34]}  b3 {[%clk 0:00:18]} 38. Rb1 {[%clk 0:01:34]}  Rb5 {[%clk 0:00:18]} 39. Kxf7 {[%clk 0:01:34]}  b2 {[%clk 0:00:15]} 40. f4 {[%clk 0:01:34]}  a5 {[%clk 0:00:15]} 41. e5 {[%clk 0:01:34]}  a4 {[%clk 0:00:16]} 42. e6 {[%clk 0:01:35]}  Rb4 {[%clk 0:00:10]} 43. e7 {[%clk 0:01:33]}  Rxf4+ {[%clk 0:00:10]} 44. Kg7 {[%clk 0:01:32]}  Kd7 {[%clk 0:00:08]} 45. Rxb2 {[%clk 0:01:30]}  Kxe7 {[%clk 0:00:06]} 46. Rg2 {[%clk 0:01:30]}  a3 {[%clk 0:00:03]} 47. g5 {[%clk 0:01:28]}  c5 {[%clk 0:00:03]} 48. Kxg6 {[%clk 0:01:28]}  Ke6 {[%clk 0:00:02]} 49. Re2+ {[%clk 0:01:27]}  Kd5 {[%clk 0:00:02]} 50. Kh7 {[%clk 0:01:27]}  Rh4+ {[%clk 0:00:01]} 51. Kg7 {[%clk 0:01:26]}  Rg4 {[%clk 0:00:01]} 52. Kf6 {[%clk 0:01:27]}  c4 {[%clk 0:00:02]} 53. Kf5 {[%clk 0:01:26]}  Rg1 {[%clk 0:00:02]} 54. Rd2+ {[%clk 0:01:26]}  Kc5 {[%clk 0:00:03]} 55. g6 {[%clk 0:01:25]}  Kb4 {[%clk 0:00:03]} 56. Ke4 {[%clk 0:01:25]}  c3 {[%clk 0:00:03]} 57. Rd6 {[%clk 0:01:23]}  a2 {[%clk 0:00:03]} 58. Rb6+ {[%clk 0:01:23]}  Kc4 {[%clk 0:00:03]} 59. Rc6+ {[%clk 0:01:23]}  Kb3 {[%clk 0:00:04]} 60. Rb6+ {[%clk 0:01:24]}  Kc2 {[%clk 0:00:04]} 61. Ra6 {[%clk 0:01:24]}  a1=Q {[%clk 0:00:05]} 62. Rxa1 {[%clk 0:01:24]}  Rxa1 {[%clk 0:00:05]} 63. g7 {[%clk 0:01:24]}  Rg1 {[%clk 0:00:05]} 64. Kd4 {[%clk 0:01:25]}  Rxg7 {[%clk 0:00:06]} 0-1


[Site "https://www.chess.com"]

[Event "Titled Tuesday Blitz January 03 Late 2023"]
[White "Almagro Mazariegos, Sebastian"]
[Black "Berezin, Viktor"]
[WhiteFideId "2221640"]
[BlackFideId "14107872"]
[WhiteElo "2280"]
[BlackElo "2307"]
[Result "0-1"]
[Round "09"]
[TimeControl "180+2"]
[Date "2023.01.03"]
[WhiteClock "0:00:19"]
[BlackClock "0:00:45"]

1. e4 {[%clk 0:02:55]}  g6 {[%clk 0:02:59]} 2. d4 {[%clk 0:02:55]}  Bg7 {[%clk 0:02:58]} 3. Nf3 {[%clk 0:02:54]}  d6 {[%clk 0:02:59]} 4. Nc3 {[%clk 0:02:54]}  Nf6 {[%clk 0:02:59]} 5. Be2 {[%clk 0:02:53]}  O-O {[%clk 0:03:00]} 6. O-O {[%clk 0:02:53]}  Nc6 {[%clk 0:03:00]} 7. d5 {[%clk 0:02:52]}  Nb8 {[%clk 0:02:57]} 8. Bg5 {[%clk 0:02:50]}  e5 {[%clk 0:02:53]} 9. dxe6 {[%clk 0:02:49]}  Bxe6 {[%clk 0:02:50]} 10. Qd2 {[%clk 0:02:48]}  Nbd7 {[%clk 0:02:48]} 11. Bh6 {[%clk 0:02:48]}  Re8 {[%clk 0:02:46]} 12. Bxg7 {[%clk 0:02:48]}  Kxg7 {[%clk 0:02:47]} 13. Ng5 {[%clk 0:02:46]}  Nc5 {[%clk 0:02:44]} 14. Qd4 {[%clk 0:02:31]}  h6 {[%clk 0:02:38]} 15. Nf3 {[%clk 0:02:25]}  Kg8 {[%clk 0:02:25]} 16. e5 {[%clk 0:02:23]}  Nh5 {[%clk 0:02:02]} 17. exd6 {[%clk 0:02:18]}  cxd6 {[%clk 0:02:01]} 18. Rfd1 {[%clk 0:02:02]}  Rc8 {[%clk 0:01:50]} 19. Bb5 {[%clk 0:01:53]}  Rf8 {[%clk 0:01:43]} 20. Qxd6 {[%clk 0:01:52]}  Qf6 {[%clk 0:01:42]} 21. Qe5 {[%clk 0:01:47]}  a6 {[%clk 0:01:33]} 22. Qxf6 {[%clk 0:01:42]}  Nxf6 {[%clk 0:01:34]} 23. Be2 {[%clk 0:01:40]}  Bf5 {[%clk 0:01:26]} 24. Nd4 {[%clk 0:01:38]}  Bd7 {[%clk 0:01:23]} 25. Bf3 {[%clk 0:01:32]}  b5 {[%clk 0:01:21]} 26. a3 {[%clk 0:01:29]}  Rfd8 {[%clk 0:01:21]} 27. Rd2 {[%clk 0:01:27]}  g5 {[%clk 0:01:18]} 28. h3 {[%clk 0:01:25]}  h5 {[%clk 0:01:18]} 29. Rad1 {[%clk 0:01:12]}  g4 {[%clk 0:01:17]} 30. hxg4 {[%clk 0:01:12]}  hxg4 {[%clk 0:01:18]} 31. Bd5 {[%clk 0:01:12]}  Kg7 {[%clk 0:01:06]} 32. Ba2 {[%clk 0:00:55]}  Rh8 {[%clk 0:01:04]} 33. Nde2 {[%clk 0:00:40]}  Bf5 {[%clk 0:01:02]} 34. Ng3 {[%clk 0:00:26]}  Bg6 {[%clk 0:01:01]} 35. Nd5 {[%clk 0:00:22]}  Nce4 {[%clk 0:00:55]} 36. Nxe4 {[%clk 0:00:19]}  Nxe4 {[%clk 0:00:56]} 37. Re2 {[%clk 0:00:19]}  Rh7 {[%clk 0:00:45]} 38. Nf4 {[%clk 0:00:19]}  Rch8 {[%clk 0:00:45]} 0-1


[Site "https://www.chess.com"]

[Event "Titled Tuesday Blitz January 03 Late 2023"]
[White "Reprintsev, Alexander"]
[Black "Balint, Vilmos"]
[WhiteFideId "14100541"]
[BlackFideId "718050"]
[WhiteElo "2253"]
[BlackElo "2169"]
[Result "1-0"]
[Round "09"]
[TimeControl "180+2"]
[Date "2023.01.03"]
[WhiteClock "0:01:55"]
[BlackClock "0:01:51"]

1. e4 {[%clk 0:02:53]}  e5 {[%clk 0:02:57]} 2. f4 {[%clk 0:02:52]}  d5 {[%clk 0:02:56]} 3. exd5 {[%clk 0:02:52]}  exf4 {[%clk 0:02:57]} 4. Nf3 {[%clk 0:02:51]}  Nf6 {[%clk 0:02:57]} 5. Bb5+ {[%clk 0:02:51]}  Bd7 {[%clk 0:02:55]} 6. Bxd7+ {[%clk 0:02:50]}  Qxd7 {[%clk 0:02:55]} 7. O-O {[%clk 0:02:51]}  Qxd5 {[%clk 0:02:49]} 8. d4 {[%clk 0:02:51]}  Be7 {[%clk 0:02:47]} 9. Bxf4 {[%clk 0:02:49]}  c5 {[%clk 0:02:44]} 10. Nc3 {[%clk 0:02:47]}  Qf5 {[%clk 0:02:37]} 11. Nh4 {[%clk 0:02:38]}  Qg4 {[%clk 0:02:34]} 12. Qxg4 {[%clk 0:02:28]}  Nxg4 {[%clk 0:02:35]} 13. Nf5 {[%clk 0:02:28]}  g6 {[%clk 0:02:08]} 14. Nxe7 {[%clk 0:02:23]}  Kxe7 {[%clk 0:02:08]} 15. Nd5+ {[%clk 0:02:24]}  Kd7 {[%clk 0:02:08]} 16. Nc7 {[%clk 0:02:20]}  Na6 {[%clk 0:02:08]} 17. Nxa8 {[%clk 0:02:13]}  Rxa8 {[%clk 0:02:07]} 18. dxc5 {[%clk 0:02:08]}  f5 {[%clk 0:02:04]} 19. Rad1+ {[%clk 0:02:05]}  Kc6 {[%clk 0:02:04]} 20. Rfe1 {[%clk 0:02:00]}  Rf8 {[%clk 0:01:52]} 21. Re6+ {[%clk 0:01:56]}  Kxc5 {[%clk 0:01:52]} 22. Bd6+ {[%clk 0:01:55]}  Kb5 {[%clk 0:01:51]} 23. Bxf8 {[%clk 0:01:55]} 1-0


[Site "https://www.chess.com"]

[Event "Titled Tuesday Blitz January 03 Late 2023"]
[White "Ibadov, Dashgyn"]
[Black "Van den Dikkenberg, Erik"]
[WhiteFideId "24107514"]
[BlackFideId "1005880"]
[WhiteElo "2391"]
[BlackElo "2091"]
[Result "1-0"]
[Round "09"]
[TimeControl "180+2"]
[Date "2023.01.03"]
[WhiteClock "0:00:19"]
[BlackClock "0:00:04"]

1. e4 {[%clk 0:03:00]}  c5 {[%clk 0:02:59]} 2. Nf3 {[%clk 0:03:00]}  d6 {[%clk 0:02:58]} 3. d4 {[%clk 0:02:59]}  cxd4 {[%clk 0:02:58]} 4. Nxd4 {[%clk 0:03:00]}  Nf6 {[%clk 0:02:59]} 5. Nc3 {[%clk 0:03:00]}  a6 {[%clk 0:03:00]} 6. h3 {[%clk 0:03:00]}  Nc6 {[%clk 0:02:59]} 7. g4 {[%clk 0:02:59]}  Qb6 {[%clk 0:02:55]} 8. Nb3 {[%clk 0:02:46]}  g6 {[%clk 0:02:47]} 9. Be3 {[%clk 0:02:44]}  Qd8 {[%clk 0:02:38]} 10. g5 {[%clk 0:02:34]}  Nd7 {[%clk 0:02:28]} 11. h4 {[%clk 0:02:33]}  Bg7 {[%clk 0:02:26]} 12. h5 {[%clk 0:02:33]}  gxh5 {[%clk 0:02:17]} 13. Qxh5 {[%clk 0:02:27]}  Nde5 {[%clk 0:02:15]} 14. Be2 {[%clk 0:02:17]}  Ng6 {[%clk 0:01:52]} 15. Nd5 {[%clk 0:02:06]}  Be6 {[%clk 0:01:45]} 16. Bb6 {[%clk 0:02:05]}  Qc8 {[%clk 0:01:40]} 17. Nc7+ {[%clk 0:02:04]}  Kf8 {[%clk 0:01:40]} 18. Nxa8 {[%clk 0:02:04]}  Qxa8 {[%clk 0:01:40]} 19. O-O-O {[%clk 0:01:56]}  a5 {[%clk 0:01:39]} 20. Nd4 {[%clk 0:01:49]}  Nxd4 {[%clk 0:01:26]} 21. Bxd4 {[%clk 0:01:50]}  Bxd4 {[%clk 0:01:25]} 22. Rxd4 {[%clk 0:01:50]}  Qa7 {[%clk 0:01:19]} 23. Rhd1 {[%clk 0:01:49]}  Qc5 {[%clk 0:00:51]} 24. a3 {[%clk 0:01:41]}  b5 {[%clk 0:00:45]} 25. Qf3 {[%clk 0:01:39]}  Qxg5+ {[%clk 0:00:42]} 26. Kb1 {[%clk 0:01:37]}  Kg7 {[%clk 0:00:28]} 27. Qc3 {[%clk 0:01:29]}  Ne5 {[%clk 0:00:26]} 28. Qxa5 {[%clk 0:01:22]}  Rc8 {[%clk 0:00:21]} 29. Qxb5 {[%clk 0:01:17]}  Qf4 {[%clk 0:00:17]} 30. Rg1+ {[%clk 0:00:43]}  Ng6 {[%clk 0:00:17]} 31. Qd3 {[%clk 0:00:35]}  Qe5 {[%clk 0:00:15]} 32. Qe3 {[%clk 0:00:32]}  Rb8 {[%clk 0:00:14]} 33. f4 {[%clk 0:00:31]}  Qc5 {[%clk 0:00:13]} 34. f5 {[%clk 0:00:29]}  Qb6 {[%clk 0:00:10]} 35. Qc3 {[%clk 0:00:22]}  Bd7 {[%clk 0:00:04]} 36. Rxd6+ {[%clk 0:00:19]} 1-0


[Site "https://www.chess.com"]